fUST/lending_fUST_20250522
["ID","MTS","AMOUNT","RATE_DAILY","PERIOD"]
[361953689,1747907454142,-314.528371,0.0002399,7]
[361953690,1747907454151,-151.0,0.0002399,7]
[361953691,1747907454161,-151.0,0.0002399,2]
[361953692,1747907454170,-314.528371,0.0002399,7]
[361953693,1747907454180,-151.0,0.0002399,2]
[361953694,1747907454190,-151.0,0.0002399,7]
[361953695,1747907454200,-151.0,0.0002399,7]
[361953696,1747907454209,-151.0,0.0002399,7]
[361953697,1747907454218,-151.0,0.0002399,7]
[361953698,1747907454228,-1754.494524,0.0002399,7]
[361953699,1747907454238,-1754.494524,0.0002399,7]
[361953700,1747907454247,-351.357172,0.0002399,7]
[361953701,1747907454257,-351.357172,0.0002399,7]
[361953702,1747907454266,-160.0,0.00023999,2]
[361953703,1747907454275,-868737.385559,0.00024,30]
[361953704,1747907454644,-300.0,0.00021361,2]
[361953705,1747907454654,-480.91743094,0.00021917,2]
[361953706,1747907454663,-430.0,0.00021917,2]
[361953707,1747907454673,-305.04900472,0.00021917,2]
[361953708,1747907454683,-470.0,0.00021917,2]
[361953709,1747907454693,-430.0,0.00021917,2]
[361953710,1747907454702,-430.0,0.00021917,2]
[361953711,1747907454712,-430.0,0.00021917,2]
[361953712,1747907454722,-430.0,0.00022191,2]
[361953713,1747907454732,-430.0,0.00022465,2]
[361953714,1747907454741,-300.0,0.00023227,2]
[361953715,1747907454751,-246.372,0.0002392,2]
[361953716,1747907454760,-388836.221901,0.00024,30]
[361953717,1747907454806,-430.0,0.00021917,2]
[361953718,1747907454816,-430.0,0.00021917,2]
[361953719,1747907454958,-170.0,0.00022191,2]
[361953720,1747907454969,-430.0,0.00022191,2]
[361953721,1747907454981,-422.78357425,0.00022314,2]
[361953722,1747907454991,-2757.84865675,0.00024,30]
[361953723,1747907455121,-430.0,0.00021917,2]
[361953724,1747907455130,-430.0,0.00021917,2]
[361953725,1747907455140,-430.0,0.00021917,2]
[361953726,1747907455150,-430.0,0.00021917,2]
[361953727,1747907455159,-430.0,0.00022191,2]
[361953728,1747907455168,-430.0,0.00022191,2]
[361953729,1747907455179,-430.0,0.00022191,2]
[361953730,1747907455189,-430.0,0.00022465,2]
[361953731,1747907455198,-33139.57873084,0.00024,30]
[361953732,1747907455210,-571224.91940985,0.00024,30]
[361953733,1747907455311,-430.0,0.00021917,2]
[361953734,1747907455321,-430.0,0.00021917,2]
[361953735,1747907455330,-430.0,0.00021917,2]
[361953736,1747907455340,-430.0,0.00021917,2]
[361953737,1747907455349,-75.39916671,0.00022191,2]
[361953738,1747907455641,-159.75404113,0.00022191,2]
[361953740,1747907990082,-2269.4279005,0.00020895,2]
[361953741,1747907990108,-404.5760505,0.00020912,2]
[361953742,1747907990130,-197.7100262,0.00021123,2]
[361953743,1747907990152,-160.0,0.00021787,2]
[361953744,1747907990176,-1339.59779788,0.00021806,2]
[361953745,1747907990200,-210.8843982,0.000219,2]
[361953746,1747907990223,-300.0,0.00021914,2]
[361953747,1747907990247,-300.0,0.00021914,2]
[361953748,1747907990270,-300.0,0.00021915,2]
[361953749,1747907990293,-300.0,0.00021915,2]
[361953750,1747907990317,-1200.0,0.00021915,2]
[361953751,1747907990344,-500.0,0.00021916,2]
[361953752,1747907990368,-500.0,0.00021916,2]
[361953753,1747907990392,-470.44060441,0.00021916,2]
[361953754,1747907990418,-500.0,0.00021916,2]
[361953755,1747907990444,-500.0,0.00021916,2]
[361953756,1747907990472,-500.0,0.00021916,2]
[361953757,1747907990497,-500.0,0.00021916,2]
[361953758,1747907990523,-526.45065696,0.00021916,2]
[361953759,1747907990546,-155.93354669,0.00021916,2]
[361953760,1747907990567,-624.63141787,0.00021916,2]
[361953761,1747907990588,-500.0,0.00021916,2]
[361953762,1747907990609,-168.058774,0.00021916,2]
[361953763,1747907990633,-500.0,0.00021916,2]
[361953764,1747907990656,-500.0,0.00021916,2]
[361953765,1747907990679,-196.19646304,0.00021916,2]
[361953766,1747907990702,-201.09236375,0.00021916,2]
[361953805,1747908632114,-5000.0,0.00019602,2]
[361953806,1747908632125,-300.0,0.00019868,2]
[361953807,1747908632135,-200.0,0.00019868,2]
[361953808,1747908632144,-300.0,0.00019868,2]
[361953810,1747908632154,-1200.0,0.00019868,2]
[361953812,1747908632163,-24900.0,0.00019869,2]
[361953814,1747908632174,-13408.0,0.0002,2]
[361953816,1747908632183,-9513.4729023,0.00020781,2]
[361953818,1747908632194,-445.65294564,0.00020895,2]
[361953820,1747908632204,-500.0,0.00020899,2]
[361953822,1747908632215,-500.0,0.00020899,2]
[361953825,1747908632225,-500.0,0.00020899,2]
[361953826,1747908632235,-500.0,0.00020899,2]
[361953827,1747908632251,-500.0,0.00020899,2]
[361953828,1747908632261,-500.0,0.00020899,2]
[361953829,1747908632271,-500.0,0.00020899,2]
[361953830,1747908632281,-500.0,0.00020899,2]
[361953831,1747908632291,-500.0,0.00020899,2]
[361953832,1747908632302,-500.0,0.00020899,2]
[361953833,1747908632312,-500.0,0.00020899,2]
[361953834,1747908632335,-500.0,0.00020899,2]
[361953835,1747908632347,-500.0,0.00020899,2]
[361953836,1747908632357,-500.0,0.00020899,2]
[361953837,1747908632369,-500.0,0.00020899,2]
[361953838,1747908632379,-500.0,0.00020899,2]
[361953839,1747908632390,-500.0,0.00020899,2]
[361953840,1747908632400,-500.0,0.00020899,2]
[361953841,1747908632410,-500.0,0.00020899,2]
[361953842,1747908632422,-500.0,0.00020899,2]
[361953843,1747908632432,-500.0,0.00020899,2]
[361953844,1747908632443,-500.0,0.00020899,2]
[361953845,1747908632453,-500.0,0.00020899,2]
[361953846,1747908632463,-500.0,0.00020899,2]
[361953847,1747908632474,-229.62792367,0.00020899,2]
[361953848,1747908632484,-500.0,0.00020899,2]
[361953849,1747908632494,-500.0,0.00020899,2]
[361953850,1747908632673,-272.64506569,0.00020899,2]
[361953851,1747908632685,-500.0,0.00020899,2]
[361953852,1747908632696,-500.0,0.00020899,2]
[361953853,1747908632707,-500.0,0.00020899,2]
[361953854,1747908632717,-500.0,0.00020899,2]
[361953855,1747908632727,-500.0,0.00020899,2]
[361953856,1747908632737,-500.0,0.00020899,2]
[361953857,1747908632746,-500.0,0.00020899,2]
[361953858,1747908632756,-500.0,0.00020899,2]
[361953859,1747908632765,-500.0,0.00020899,2]
[361953860,1747908632775,-500.0,0.00020899,2]
[361953861,1747908632785,-200.0,0.00020899,2]
[361953862,1747908632795,-500.0,0.00020899,2]
[361953863,1747908632806,-500.0,0.00020899,2]
[361953864,1747908632815,-500.0,0.00020899,2]
[361953865,1747908632825,-566.65131304,0.00020899,2]
[361953866,1747908632834,-3740.61522872,0.000209,4]
[361953867,1747908632844,-535.641792,0.00020912,2]
[361953868,1747908632853,-298.6558789,0.00020912,2]
[361953869,1747908632863,-202.354314,0.00020916,2]
[361953870,1747908632874,-3740.61522869,0.00021038,4]
[361953871,1747908632883,-3740.61522869,0.00021176,4]
[361953872,1747908632893,-3740.61522869,0.00021314,5]
[361953873,1747908632903,-3740.61522869,0.00021452,5]
[361953874,1747908632913,-152.0,0.00021524,2]
[361953875,1747908632923,-3740.61522869,0.0002159,5]
[361953876,1747908632933,-420.0,0.00021637,2]
[361953877,1747908632943,-420.0,0.00021637,2]
[361953878,1747908632954,-3740.61522869,0.00021728,5]
[361953879,1747908632963,-1680.0,0.00021741,2]
[361953880,1747908632973,-3740.61522869,0.00021866,6]
[361953881,1747908632983,-300.0,0.00021913,2]
[361953882,1747908632992,-154.513,0.00021916,2]
[361953883,1747908633002,-160.0,0.00021916,2]
[361953884,1747908633012,-292.50793432,0.00021917,2]
[361953885,1747908633022,-450.0,0.00021917,2]
[361953886,1747908633032,-400.0,0.00021917,2]
[361953887,1747908633042,-430.0,0.00021917,2]
[361953888,1747908633051,-430.0,0.00021917,2]
[361953889,1747908633060,-430.0,0.00021917,2]
[361953890,1747908633070,-430.0,0.00021917,2]
[361953891,1747908633079,-430.0,0.00021917,2]
[361953892,1747908633090,-430.0,0.00021917,2]
[361953893,1747908633099,-430.0,0.00021917,2]
[361953894,1747908633109,-430.0,0.00021917,2]
[361953895,1747908633118,-430.0,0.00021917,2]
[361953896,1747908633129,-430.0,0.00021917,2]
[361953897,1747908633139,-190.50456212,0.00021917,2]
[361953898,1747908633148,-430.0,0.00021917,2]
[361953899,1747908633158,-430.0,0.00021917,2]
[361953900,1747908633168,-264.89659329,0.00021917,2]
[361953901,1747908633178,-430.0,0.00021917,2]
[361953902,1747908633189,-426.55897665,0.00021917,2]
[361953903,1747908633199,-430.0,0.00021917,2]
[361953904,1747908633208,-430.0,0.00021917,2]
[361953905,1747908633218,-430.0,0.00021917,2]
[361953906,1747908633228,-450.0,0.00021917,2]
[361953907,1747908633238,-450.0,0.00021917,2]
[361953908,1747908633248,-430.0,0.00021917,2]
[361953909,1747908633260,-430.64195263,0.00021917,2]
[361953910,1747908633270,-430.0,0.00021917,2]
[361953911,1747908633280,-398.83047107,0.00021917,2]
[361953912,1747908633291,-430.0,0.00021917,2]
[361953913,1747908633301,-430.0,0.00021917,2]
[361953914,1747908633311,-430.0,0.00021917,2]
[361953915,1747908633321,-430.0,0.00021917,2]
[361953916,1747908633336,-400.99500957,0.00021917,2]
[361953917,1747908633345,-450.0,0.00021917,2]
[361953918,1747908633356,-430.0,0.00021917,2]
[361953919,1747908633367,-430.0,0.00021917,2]
[361953920,1747908633379,-430.0,0.00021917,2]
[361953921,1747908633389,-501.5237928,0.00021917,2]
[361953922,1747908633400,-500.0,0.00021917,2]
[361953923,1747908633411,-432.63233871,0.00021917,2]
[361953924,1747908633421,-430.0,0.00021917,2]
[361953925,1747908633431,-430.0,0.00021917,2]
[361953926,1747908633441,-430.0,0.00021917,2]
[361953927,1747908633451,-430.0,0.00021917,2]
[361953928,1747908633462,-430.0,0.00021917,2]
[361953929,1747908633473,-430.0,0.00021917,2]
[361953930,1747908633483,-430.0,0.00021917,2]
[361953931,1747908633493,-430.0,0.00021917,2]
[361953932,1747908633504,-450.0,0.00021917,2]
[361953933,1747908633514,-382.79154148,0.00021917,2]
[361953934,1747908633524,-430.0,0.00021917,2]
[361953935,1747908633535,-400.56935095,0.00021917,2]
[361953936,1747908633545,-430.0,0.00021917,2]
[361953937,1747908633555,-430.0,0.00021917,2]
[361953938,1747908633566,-430.0,0.00021917,2]
[361953939,1747908633576,-400.0,0.00021917,2]
[361953940,1747908633585,-430.0,0.00021917,2]
[361953941,1747908633596,-400.0,0.00021917,2]
[361953942,1747908633606,-338.69550036,0.00021917,2]
[361953943,1747908633616,-430.0,0.00021917,2]
[361953944,1747908633626,-430.0,0.00021917,2]
[361953945,1747908633635,-430.0,0.00021917,2]
[361953946,1747908633645,-430.0,0.00021917,2]
[361953947,1747908633655,-430.0,0.00021917,2]
[361953948,1747908633666,-403.63718952,0.00021917,2]
[361953949,1747908633676,-430.0,0.00021917,2]
[361953950,1747908633686,-430.0,0.00021917,2]
[361953951,1747908633696,-320.0,0.00021917,2]
[361953952,1747908633706,-430.0,0.00021917,2]
[361953953,1747908633716,-430.0,0.00021917,2]
[361953954,1747908633726,-430.0,0.00021917,2]
[361953955,1747908633736,-430.0,0.00021917,2]
[361953956,1747908633746,-430.0,0.00021917,2]
[361953957,1747908633755,-430.0,0.00021917,2]
[361953958,1747908633765,-430.0,0.00021917,2]
[361953959,1747908633775,-430.0,0.00021917,2]
[361953960,1747908633785,-430.0,0.00021917,2]
[361953961,1747908633795,-430.0,0.00021917,2]
[361953962,1747908633805,-430.0,0.00021917,2]
[361953963,1747908633814,-430.0,0.00021917,2]
[361953964,1747908633824,-430.0,0.00021917,2]
[361953965,1747908633836,-490.0,0.00021917,2]
[361953966,1747908633846,-430.0,0.00021917,2]
[361953967,1747908633856,-430.0,0.00021917,2]
[361953968,1747908633866,-430.0,0.00021917,2]
[361953969,1747908633876,-430.0,0.00021917,2]
[361953970,1747908633886,-430.0,0.00021917,2]
[361953971,1747908633896,-456.25993236,0.00021917,2]
[361953972,1747908633906,-430.0,0.00021917,2]
[361953973,1747908633916,-430.0,0.00021917,2]
[361953974,1747908633925,-1004.80827646,0.00021917,2]
[361953975,1747908633935,-430.0,0.00021917,2]
[361953976,1747908633945,-430.0,0.00021917,2]
[361953977,1747908633955,-370.43095344,0.00021917,2]
[361953978,1747908634172,-500.0,0.00021917,2]
[361953979,1747908634182,-430.0,0.00021917,2]
[361953980,1747908634191,-430.0,0.00021917,2]
[361953981,1747908634201,-430.0,0.00021917,2]
[361953982,1747908634211,-430.0,0.00021917,2]
[361953983,1747908634222,-430.0,0.00021917,2]
[361953984,1747908634231,-436.00544376,0.00021917,2]
[361953985,1747908634241,-430.0,0.00021917,2]
[361953986,1747908634251,-430.0,0.00021917,2]
[361953987,1747908634262,-400.86320496,0.00021917,2]
[361953988,1747908634273,-430.0,0.00021917,2]
[361953989,1747908634283,-430.0,0.00021917,2]
[361953990,1747908634294,-430.0,0.00021917,2]
[361953991,1747908634304,-331.25,0.00021917,2]
[361953992,1747908634315,-454.90788779,0.00021917,2]
[361953993,1747908634329,-430.0,0.00021917,2]
[361953994,1747908634339,-400.0,0.00021917,2]
[361953995,1747908634349,-430.0,0.00021917,2]
[361953996,1747908634359,-430.0,0.00021917,2]
[361953997,1747908634371,-430.0,0.00021917,2]
[361953998,1747908634380,-430.0,0.00021917,2]
[361953999,1747908634391,-837.32,0.00021917,2]
[361954000,1747908634401,-430.0,0.00021917,2]
[361954001,1747908634411,-437.06,0.00021917,2]
[361954002,1747908634422,-430.0,0.00021917,2]
[361954003,1747908634432,-430.0,0.00021917,2]
[361954004,1747908634443,-430.0,0.00021917,2]
[361954005,1747908634452,-430.0,0.00021917,2]
[361954006,1747908634463,-430.0,0.00021917,2]
[361954007,1747908634475,-430.0,0.00021917,2]
[361954008,1747908634485,-450.0,0.00021917,2]
[361954009,1747908634495,-430.0,0.00021917,2]
[361954010,1747908634505,-430.0,0.00021917,2]
[361954011,1747908634515,-400.90681113,0.00021917,2]
[361954012,1747908634525,-420.0,0.00021917,2]
[361954013,1747908634534,-177.81475002,0.00021917,2]
[361954014,1747908634544,-430.0,0.00021917,2]
[361954015,1747908634553,-430.0,0.00021917,2]
[361954016,1747908634563,-430.0,0.00021917,2]
[361954017,1747908634574,-430.0,0.00021917,2]
[361954018,1747908634583,-430.0,0.00021917,2]
[361954019,1747908634592,-430.0,0.00021917,2]
[361954020,1747908634603,-430.0,0.00021917,2]
[361954021,1747908634613,-430.0,0.00021917,2]
[361954022,1747908634622,-430.0,0.00021917,2]
[361954023,1747908634632,-430.0,0.00021917,2]
[361954024,1747908634642,-430.0,0.00021917,2]
[361954025,1747908634652,-450.0,0.00021917,2]
[361954026,1747908634662,-430.0,0.00021917,2]
[361954027,1747908634673,-430.0,0.00021917,2]
[361954028,1747908634683,-301.11863513,0.00021917,2]
[361954029,1747908634692,-391.9369699,0.00021917,2]
[361954030,1747908634703,-430.0,0.00021917,2]
[361954031,1747908634713,-430.0,0.00021917,2]
[361954032,1747908634723,-430.0,0.00021917,2]
[361954033,1747908634733,-430.0,0.00021917,2]
[361954034,1747908634742,-430.0,0.00021917,2]
[361954035,1747908634754,-430.0,0.00021917,2]
[361954036,1747908634764,-430.0,0.00021917,2]
[361954037,1747908634774,-430.0,0.00021917,2]
[361954038,1747908634784,-430.0,0.00021917,2]
[361954039,1747908634794,-430.0,0.00021917,2]
[361954040,1747908634804,-157.20591783,0.00021917,2]
[361954041,1747908634814,-420.0,0.00021917,2]
[361954042,1747908634824,-430.0,0.00021917,2]
[361954043,1747908634834,-370.87806351,0.00021917,2]
[361954044,1747908634843,-430.0,0.00021917,2]
[361954045,1747908634852,-582.2,0.00021917,2]
[361954046,1747908634862,-192.45383579,0.00021917,2]
[361954047,1747908634872,-470.0,0.00021917,2]
[361954048,1747908634882,-430.0,0.00021917,2]
[361954049,1747908634892,-430.0,0.00021917,2]
[361954050,1747908634902,-232.95398784,0.00021917,2]
[361954051,1747908634912,-430.0,0.00021917,2]
[361954052,1747908634922,-430.0,0.00021917,2]
[361954053,1747908634932,-430.0,0.00021917,2]
[361954054,1747908634941,-430.0,0.00021917,2]
[361954055,1747908634951,-430.0,0.00021917,2]
[361954056,1747908634963,-430.0,0.00021917,2]
[361954057,1747908634973,-400.0,0.00021917,2]
[361954058,1747908634982,-406.22800147,0.00021917,2]
[361954059,1747908634992,-450.61,0.00021917,2]
[361954060,1747908635002,-430.0,0.00021917,2]
[361954061,1747908635013,-350.0,0.00021917,2]
[361954062,1747908635022,-430.0,0.00021917,2]
[361954063,1747908635032,-430.0,0.00021917,2]
[361954064,1747908635042,-259.45147679,0.00021917,2]
[361954065,1747908635052,-430.0,0.00021917,2]
[361954066,1747908635061,-371.89646484,0.00021917,2]
[361954067,1747908635070,-400.0,0.00021917,2]
[361954068,1747908635079,-430.0,0.00021917,2]
[361954069,1747908635192,-430.0,0.00021917,2]
[361954070,1747908635202,-430.0,0.00021917,2]
[361954071,1747908635212,-370.0,0.00021917,2]
[361954072,1747908635222,-450.0,0.00021917,2]
[361954073,1747908635231,-430.0,0.00021917,2]
[361954074,1747908635241,-430.0,0.00021917,2]
[361954075,1747908635250,-430.0,0.00021917,2]
[361954076,1747908635259,-430.0,0.00021917,2]
[361954077,1747908635269,-430.0,0.00021917,2]
[361954078,1747908635279,-430.0,0.00021917,2]
[361954079,1747908635289,-430.0,0.00021917,2]
[361954080,1747908635298,-430.0,0.00021917,2]
[361954081,1747908635308,-451.16714129,0.00021917,2]
[361954082,1747908635317,-430.0,0.00021917,2]
[361954083,1747908635331,-430.0,0.00021917,2]
[361954084,1747908635340,-430.0,0.00021917,2]
[361954085,1747908635350,-430.0,0.00021917,2]
[361954086,1747908635359,-430.0,0.00021917,2]
[361954087,1747908635371,-430.0,0.00021917,2]
[361954088,1747908635380,-430.0,0.00021917,2]
[361954089,1747908635389,-430.0,0.00021917,2]
[361954090,1747908635399,-430.0,0.00021917,2]
[361954091,1747908635408,-430.0,0.00021917,2]
[361954092,1747908635418,-430.0,0.00021917,2]
[361954093,1747908635427,-401.03096824,0.00021917,2]
[361954094,1747908635437,-430.0,0.00021917,2]
[361954095,1747908635447,-450.0,0.00021917,2]
[361954096,1747908635457,-430.0,0.00021917,2]
[361954097,1747908635467,-430.0,0.00021917,2]
[361954098,1747908635476,-430.0,0.00021917,2]
[361954099,1747908635485,-430.0,0.00021917,2]
[361954100,1747908635495,-400.0,0.00021917,2]
[361954101,1747908635504,-420.0,0.00021917,2]
[361954102,1747908635514,-419.33638042,0.00021917,2]
[361954103,1747908635523,-430.0,0.00021917,2]
[361954104,1747908635532,-400.0,0.00021917,2]
[361954105,1747908635542,-294.35367001,0.00021917,2]
[361954106,1747908635551,-430.0,0.00021917,2]
[361954107,1747908635560,-677.76,0.00021917,2]
[361954108,1747908635570,-430.0,0.00021917,2]
[361954109,1747908635580,-430.0,0.00021917,2]
[361954110,1747908635589,-430.0,0.00021917,2]
[361954111,1747908635599,-596.49,0.00021917,2]
[361954112,1747908635609,-500.0,0.00021917,2]
[361954113,1747908635618,-500.0,0.00021917,2]
[361954114,1747908635627,-430.0,0.00021917,2]
[361954115,1747908635637,-434.27026199,0.00021917,2]
[361954116,1747908635647,-430.0,0.00021917,2]
[361954117,1747908635656,-430.0,0.00021917,2]
[361954118,1747908635666,-430.0,0.00021917,2]
[361954119,1747908635675,-430.0,0.00021917,2]
[361954120,1747908635684,-915.62,0.00021917,2]
[361954121,1747908635694,-430.0,0.00021917,2]
[361954122,1747908635703,-450.0,0.00021917,2]
[361954123,1747908635712,-430.0,0.00021917,2]
[361954124,1747908635722,-430.0,0.00021917,2]
[361954125,1747908635731,-430.0,0.00021917,2]
[361954126,1747908635741,-430.0,0.00021917,2]
[361954127,1747908635750,-390.0,0.00021917,2]
[361954128,1747908635759,-1674.59,0.00021917,2]
[361954129,1747908635770,-430.0,0.00021917,2]
[361954130,1747908635779,-717.59,0.00021917,2]
[361954131,1747908635788,-431.02342355,0.00021917,2]
[361954132,1747908635798,-433.17532737,0.00021917,2]
[361954133,1747908635807,-430.0,0.00021917,2]
[361954134,1747908635816,-420.51,0.00021917,2]
[361954135,1747908635826,-430.0,0.00021917,2]
[361954136,1747908635835,-430.0,0.00021917,2]
[361954137,1747908635844,-430.0,0.00021917,2]
[361954138,1747908635853,-430.0,0.00021917,2]
[361954139,1747908635863,-430.0,0.00021917,2]
[361954140,1747908635872,-430.0,0.00021917,2]
[361954141,1747908635881,-752.73,0.00021917,2]
[361954142,1747908635890,-430.0,0.00021917,2]
[361954143,1747908635900,-320.0,0.00021917,2]
[361954144,1747908635909,-430.0,0.00021917,2]
[361954145,1747908635919,-1251.61,0.00021917,2]
[361954146,1747908635929,-430.0,0.00021917,2]
[361954147,1747908635939,-430.0,0.00021917,2]
[361954148,1747908635948,-630.34,0.00021917,2]
[361954149,1747908635957,-430.0,0.00021917,2]
[361954150,1747908635968,-430.0,0.00021917,2]
[361954151,1747908635978,-430.0,0.00021917,2]
[361954152,1747908635988,-970.58,0.00021917,2]
[361954153,1747908635998,-430.0,0.00021917,2]
[361954154,1747908636008,-430.0,0.00021917,2]
[361954155,1747908636018,-430.0,0.00021917,2]
[361954156,1747908636027,-633.69,0.00021917,2]
[361954157,1747908636037,-491.79572484,0.00021917,2]
[361954158,1747908636046,-430.0,0.00021917,2]
[361954159,1747908636056,-430.0,0.00021917,2]
[361954160,1747908636065,-430.0,0.00021917,2]
[361954161,1747908636075,-292.48,0.00021917,2]
[361954162,1747908636084,-470.0,0.00021917,2]
[361954163,1747908636094,-430.0,0.00021917,2]
[361954164,1747908636103,-2510.9,0.00021917,2]
[361954165,1747908636112,-430.0,0.00021917,2]
[361954166,1747908636122,-430.0,0.00021917,2]
[361954167,1747908636132,-430.0,0.00021917,2]
[361954168,1747908636142,-430.0,0.00021917,2]
[361954169,1747908636152,-430.0,0.00021917,2]
[361954170,1747908636163,-430.0,0.00021917,2]
[361954171,1747908636172,-430.0,0.00021917,2]
[361954172,1747908636182,-1651.71,0.00021917,2]
[361954173,1747908636191,-487.08,0.00021917,2]
[361954174,1747908636200,-500.0,0.00021917,2]
[361954175,1747908636210,-430.0,0.00021917,2]
[361954176,1747908636220,-430.0,0.00021917,2]
[361954177,1747908636230,-357.49351454,0.00021917,2]
[361954178,1747908636240,-364.46703473,0.00021917,2]
[361954179,1747908636250,-165.11577248,0.00021917,2]
[361954180,1747908636260,-430.0,0.00021917,2]
[361954181,1747908636271,-430.0,0.00021917,2]
[361954182,1747908636281,-2720.04,0.00021917,2]
[361954183,1747908636291,-430.0,0.00021917,2]
[361954184,1747908636301,-430.0,0.00021917,2]
[361954185,1747908636310,-430.0,0.00021917,2]
[361954186,1747908636320,-430.0,0.00021917,2]
[361954187,1747908636334,-430.0,0.00021917,2]
[361954188,1747908636343,-430.0,0.00021917,2]
[361954189,1747908636353,-430.0,0.00021917,2]
[361954190,1747908636363,-500.0,0.00021917,2]
[361954191,1747908636373,-500.0,0.00021917,2]
[361954192,1747908636383,-500.0,0.00021917,2]
[361954193,1747908636392,-500.0,0.00021917,2]
[361954194,1747908636403,-500.0,0.00021917,2]
[361954195,1747908636413,-430.0,0.00021917,2]
[361954196,1747908636423,-500.0,0.00021917,2]
[361954197,1747908636432,-500.0,0.00021917,2]
[361954198,1747908636442,-586.84270522,0.00021917,2]
[361954199,1747908636451,-430.0,0.00021917,2]
[361954200,1747908636461,-430.0,0.00021917,2]
[361954201,1747908636471,-430.0,0.00021917,2]
[361954202,1747908636480,-430.0,0.00021917,2]
[361954203,1747908636490,-754.89,0.00021917,2]
[361954204,1747908636500,-430.0,0.00021917,2]
[361954205,1747908636510,-430.0,0.00021917,2]
[361954206,1747908636519,-1513.07,0.00021917,2]
[361954207,1747908636528,-430.0,0.00021917,2]
[361954208,1747908636538,-711.58,0.00021917,2]
[361954209,1747908636547,-430.0,0.00021917,2]
[361954210,1747908636556,-430.0,0.00021917,2]
[361954211,1747908636566,-430.0,0.00021917,2]
[361954212,1747908636576,-430.0,0.00021917,2]
[361954213,1747908636585,-430.0,0.00021917,2]
[361954214,1747908636595,-543.71,0.00021917,2]
[361954215,1747908636605,-304.23633894,0.00021917,2]
[361954216,1747908636615,-430.0,0.00021917,2]
[361954217,1747908636625,-400.0,0.00021917,2]
[361954218,1747908636634,-430.0,0.00021917,2]
[361954219,1747908636644,-430.0,0.00021917,2]
[361954220,1747908636655,-430.0,0.00021917,2]
[361954221,1747908636665,-430.0,0.00021917,2]
[361954222,1747908636674,-430.0,0.00021917,2]
[361954223,1747908636684,-430.0,0.00021917,2]
[361954224,1747908636693,-450.0,0.00021917,2]
[361954225,1747908636703,-331.50666071,0.00021917,2]
[361954226,1747908636714,-430.0,0.00021917,2]
[361954227,1747908636724,-430.0,0.00021917,2]
[361954228,1747908636733,-430.0,0.00021917,2]
[361954229,1747908636743,-430.0,0.00021917,2]
[361954230,1747908636752,-430.0,0.00021917,2]
[361954231,1747908636761,-430.0,0.00021917,2]
[361954232,1747908636771,-457.65,0.00021917,2]
[361954233,1747908636780,-574.8,0.00021917,2]
[361954234,1747908636790,-430.0,0.00021917,2]
[361954235,1747908636799,-430.0,0.00021917,2]
[361954236,1747908636809,-430.0,0.00021917,2]